[Event "XTX Markets LCC Super Blitz-S2 2024"]
[Site "London"]
[Date "2024.12.07"]
[Round "4.1"]
[White "Vachier-Lagrave, Maxime"]
[Black "Firouzja, Alireza"]
[Result "1/2-1/2"]
[Annotator "TA"]
[ECO "B48"]
[WhiteElo "2731"]
[BlackElo "2763"]
[PlyCount "108"]
[EventDate "2024.11.28"]
[EventType "tourn"]
[EventCountry "ENG"]
[SourceTitle "playchess.com"]
[Source "ChessBase"]
[SourceQuality "1"]
[TimeControl "180+2"]

{[%evp 52,108,57,41,264,37,59,12,10,0,0,0,0,0,14,8,16,16,16,17,18,10,10,-102,-100,-597,-589,-567,-15,-17,-8,-154,-147,-164,-164,-164,-164,-29949,-164,-29979,-164,-164,-18,-164,0,0,0,0,0,0,0,0,0,0,0,0,0,0,0]} 1. e4 {[%emt 0:00:01]} c5 {[%emt 0:00:00]} 2. Nf3 {[%emt 0:00:00]} e6 {[%emt 0:00:01]} 3. d4 {[%emt 0:00:01]} cxd4 {[%emt 0:00:01]} 4. Nxd4 {[%emt 0:00:01]} Nc6 {[%emt 0:00:00]} 5. Nc3 {[%emt 0:00:01]} Qc7 {[%emt 0:00:01]} 6. Be3 {[%emt 0:00:02]} a6 {[%emt 0:00:01]} 7. Qf3 {[%emt 0:00:02] B48: Sicilian: Taimanov: 5 Nc3 Qc7 6 Be3 a6 without Be2.} h5 {[%emt 0:00:03]} 8. Qg3 {[%emt 0:00:10]} d6 {[%emt 0:00:01]} 9. h4 {[%emt 0:00:14]} Nf6 {[%emt 0:00:07]} 10. Be2 {[%emt 0:00:04]} Ne5 {[%emt 0:00:07]} 11. f3 $146 {[%emt 0:00:29]} ({Predecessor:} 11. a4 b6 12. Nb3 Bb7 13. f3 Nfd7 14. Nd2 g6 15. f4 Nc6 16. f5 Nce5 17. fxe6 fxe6 {1-0 Fedoseev,V (2678)-Haring,F (2306) Titled Tuesday intern op 6th June blitz 2020 (3)}) 11... b5 {[%emt 0:00:04]} 12. a3 {[%emt 0:00:04]} Bd7 {[%emt 0:00:03]} 13. O-O {[%emt 0:00:05]} Be7 {[%emt 0:00:17]} 14. Rad1 {[%emt 0:00:02]} O-O {[%emt 0:00:31]} 15. Kh1 {[%emt 0:00:01]} Rfe8 {[%emt 0:00:07]} 16. Bg5 {[%emt 0:00:02]} Rab8 {[%emt 0:00:08]} 17. f4 {[%emt 0:00:21]} Neg4 {[%emt 0:00:14]} 18. f5 {[%emt 0:00:27]} e5 {[%emt 0:00:30]} 19. Bxg4 {[%emt 0:00:05]} hxg4 {[%emt 0:00:40]} 20. Bxf6 {[%emt 0:00:01]} Bxf6 {[%emt 0:00:01]} 21. Nd5 {[%emt 0:00:02]} Qd8 {[%emt 0:00:00]} 22. Nxf6+ Qxf6 {[%emt 0:00:01]} 23. Ne2 {[%emt 0:00:09]} b4 {[%emt 0:00:05]} 24. axb4 {[%emt 0:00:22]} Rxb4 {[%emt 0:00:06]} 25. Qxg4 {[%emt 0:00:07]} Bb5 {[%emt 0:00:07]} 26. Nc3 {[%emt 0:00:02]} Bc6 {[%emt 0:00:27]} (26... Bxf1 27. Nd5 $16) (26... Rxb2 $11) 27. b3 $14 {[%emt 0:00:09]} Rc8 $2 {[%emt 0:00:00]} (27... Rd4 $14) 28. Rf2 $2 {[%emt 0:00:15]} (28. Rxd6 $1 $18 Qxd6 29. f6) 28... Rd4 $14 {[%emt 0:00:02]} 29. Rd3 {[%emt 0:00:12]} (29. Rfd2 $1 $14) 29... Bb7 $11 {[%emt 0:00:03]} 30. Rxd4 {[%emt 0:00:09]} exd4 {[%emt 0:00:01]} 31. Nd5 {[%emt 0:00:01]} Bxd5 {[%emt 0:00:02]} 32. exd5 {[%emt 0:00:01]} Re8 {[%emt 0:00:08]} 33. Kh2 {[%emt 0:00:10]} Re3 {[%emt 0:00:04]} 34. Qf4 {[%emt 0:00:04]} a5 {[%emt 0:00:04]} 35. Rd2 {[%emt 0:00:02]} Re5 {[%emt 0:00:00]} 36. Qxd4 {[%emt 0:00:06]} Qxf5 {[%emt 0:00:01]} 37. c4 {[%emt 0:00:08]} (37. Rf2 $11 {keeps the balance.} Rxd5 38. Rxf5 Rxd4 39. Rxa5) 37... Re4 $1 $17 {[%emt 0:00:01]} 38. Qf2 $2 {[%emt 0:00:00][%mdl 8192]} (38. Rf2 $17 {is a better chance.}) 38... Qe5+ $19 {[%emt 0:00:01]} 39. Kh3 {[%emt 0:00:04]} Re3+ $2 {[%emt 0:00:01]} (39... Re1 $19 40. g3 Rh1+ (40... Qe4 41. Qf4 $11) 41. Kg4 Qe4+ 42. Qf4 f5+ 43. Kh5 Qe8+ 44. Kg5 Rf1 45. Qxf1 Qe7+ 46. Kxf5 (46. Kf4 $2 Qe4+ 47. Kg5 Qg4#) 46... Qf7+ (46... Qf6+ $2 47. Ke4 $19) 47. Ke4 Qxf1) 40. g3 $11 {[%emt 0:00:01]} Rxb3 {[%emt 0:00:02]} 41. Re2 {[%emt 0:00:03]} (41. c5 $11) 41... Rxg3+ $1 $17 {[%emt 0:00:03]} 42. Qxg3 {[%emt 0:00:01]} Qxe2 {[%emt 0:00:01]} 43. Qxd6 {[%emt 0:00:01]} Qd3+ {[%emt 0:00:02]} (43... Qxc4 44. Qd8+ Kh7 45. Qxa5 $11) 44. Kg2 $2 {[%emt 0:00:03] [#]} (44. Kh2 $19) 44... a4 $2 {[%emt 0:00:05]} (44... Qxc4 45. Qd8+ Kh7 46. Qxa5 $11) (44... Qg6+ $1 45. Qxg6 fxg6 46. Kg3 Kf7 47. Kf4 a4 48. c5 a3 49. Ke3 a2 50. Kf4 a1=Q (50... a1=B $2 51. Ke4 $19) 51. Kf3 Qh1+ 52. Kf4 Qxd5 53. Ke3 Qxc5+ 54. Kd3 Ke6 55. Kd2 Qd4+ 56. Kc2 Kd5 (56... Qxh4 57. Kd3 Kd5 58. Kd2 Qd4+ 59. Ke2 Ke4 60. Kf1 Qd2 61. Kg1 Kf3 62. Kh1 Qg2#) 57. Kb3 Qd3+ (57... Qxh4 58. Kc3 Qd4+ 59. Kb3 Qd2 60. Ka4 Kc4 61. Ka3 Qh2 62. Ka4 Qa2#) 58. Kb2 Kc4 59. Ka2 Qe2+ 60. Kb1 Kc3 61. Kc1 Qf1#) 45. Qa6 $2 {[%emt 0:00:04] [#]} (45. Qc6 $19) 45... a3 $2 {[%emt 0:00:01]} (45... Qg6+ $1 {mates} 46. Qxg6 fxg6 47. Kf2 a3 48. Ke3 Kf7 (48... a2 {gets mated.} 49. Ke4 Kf7 50. Ke3 a1=Q 51. Ke4 Qc3 52. c5 Qxc5 53. Kd3 Qxd5+ 54. Kc3 Ke7 55. Kb2 Kd6 56. Kc2 Kc5 57. Kc3 Qd4+ 58. Kb3 Qd2 59. h5 gxh5 60. Ka3 Kc4 61. Ka4 Qb4#) 49. Kf3 a2 50. Ke4 a1=Q (50... a1=B $2 51. Kf3 $19) 51. Kd3 Ke7 52. c5 Qe5 53. d6+ Ke6 54. Kc4 Qe3 (54... Qe2+ 55. Kc3 Qd1 56. Kc4 Qd5+ 57. Kc3 Qxc5+ 58. Kd3 Qxd6+ 59. Ke2 Qg3 60. Kd2 Kd5 61. h5 gxh5 62. Kc2 Kc4 63. Kc1 Qf2 64. Kd1 Kc3 65. Kc1 Qg1#) 55. d7 Kxd7 56. Kd5 Qf4 57. c6+ Kc7 58. Kc5 Qe4 (58... Qxh4 {is a self mate.} 59. Kd5 Qf4 60. Kc5 Qe4 61. Kb5 Qd4 62. Ka5 Kxc6 63. Ka6 Qb6#) 59. h5 gxh5 60. Kb5 Qd4 (60... Qxc6+ 61. Kb4 Qc2 62. Ka3 Qb1 63. Ka4 Kc6 64. Ka3 Kc5 65. Ka4 Qb4#) 61. Ka5 Kxc6 62. Ka6 Qb6#) 46. d6 $19 {[%emt 0:00:00]} Qd2+ {[%emt 0:00:02]} (46... Kh7 $19 {Threatens to win with ...f6.} 47. Kf2 Qd2+ 48. Kf3 a2) 47. Kg3 {[%emt 0:00:01]} (47. Kf3 $11 {and White is okay.}) 47... a2 $2 {[%emt 0:00:01]} (47... Qe3+ $19 48. Kg2 Kh7) 48. d7 $1 $11 {[%emt 0:00:02]} Qd3+ {[%emt 0:00:03]} (48... Qxd7 49. Qxa2 Qd3+ 50. Kf4) 49. Kf2 {[%emt 0:00:01]} Qxd7 {[%emt 0:00:04]} 50. Qxa2 {[%emt 0:00:01]} Qd4+ {[%emt 0:00:01]} 51. Kg3 {[%emt 0:00:01]} Qe3+ {[%emt 0:00:01]} 52. Kg2 {[%emt 0:00:01]} Qe4+ {[%emt 0:00:03]} 53. Kg3 {[%emt 0:00:01]} Qe3+ {[%emt 0:00:02]} 54. Kg2 {[%emt 0:00:00]} Qe4+ {[%emt 0:00:00]} 1/2-1/2

[Event "XTX Markets LCC Super Blitz-S2 2024"]
[Site "London"]
[Date "2024.12.07"]
[Round "4.2"]
[White "Vidit, Santosh Gujrathi"]
[Black "Jones, Gawain C B"]
[Result "0-1"]
[Annotator "ChessBase"]
[ECO "E94"]
[WhiteElo "2727"]
[BlackElo "2639"]
[PlyCount "108"]
[EventDate "2024.11.28"]
[EventType "tourn"]
[EventCountry "ENG"]
[SourceTitle "playchess.com"]
[Source "ChessBase"]
[SourceQuality "1"]
[TimeControl "180+2"]

1. d4 {[%emt 0:00:01]} Nf6 {[%emt 0:00:01]} 2. c4 {[%emt 0:00:01]} g6 {[%emt 0:00:01]} 3. Nc3 {[%emt 0:00:01]} Bg7 {[%emt 0:00:01]} 4. e4 {[%emt 0:00:01]} d6 {[%emt 0:00:01]} 5. Nf3 {[%emt 0:00:01]} O-O {[%emt 0:00:01]} 6. Be2 {[%emt 0:00:01]} e5 {[%emt 0:00:02]} 7. O-O {[%emt 0:00:02]} h6 {[%emt 0:00:01]} 8. Re1 {[%emt 0:00:03]} a5 {[%emt 0:00:01]} 9. h3 {[%emt 0:00:05]} Nbd7 {[%emt 0:00:06]} 10. Be3 {[%emt 0:00:04]} Re8 {[%emt 0:00:08]} 11. Qc2 {[%emt 0:00:04]} exd4 {[%emt 0:00:03]} 12. Nxd4 {[%emt 0:00:04]} Nc5 {[%emt 0:00:01]} 13. Bf3 {[%emt 0:00:02]} Nh7 {[%emt 0:00:04]} 14. Nb3 {[%emt 0:01:05]} Ng5 {[%emt 0:00:10]} 15. Bxg5 {[%emt 0:00:04]} Qxg5 {[%emt 0:00:03]} 16. Nd5 {[%emt 0:00:07]} Ne6 {[%emt 0:00:09]} 17. a4 {[%emt 0:00:30]} Be5 {[%emt 0:00:29]} 18. g3 {[%emt 0:00:15]} c6 {[%emt 0:00:14]} 19. h4 {[%emt 0:00:15]} Qd8 {[%emt 0:00:06]} 20. Ne3 {[%emt 0:00:02]} Nd4 {[%emt 0:00:22]} 21. Nxd4 Bxd4 {[%emt 0:00:02]} 22. Bg2 {[%emt 0:00:19]} Qf6 {[%emt 0:00:11]} 23. Re2 {[%emt 0:00:02]} h5 {[%emt 0:00:13]} 24. Rd1 {[%emt 0:00:02]} Bg4 {[%emt 0:00:03]} 25. Nxg4 {[%emt 0:00:05]} hxg4 {[%emt 0:00:01]} 26. b3 {[%emt 0:00:10]} Bc5 {[%emt 0:00:11]} 27. Rd3 {[%emt 0:00:09]} Kg7 {[%emt 0:00:08]} 28. Kf1 {[%emt 0:00:04]} Re5 {[%emt 0:00:07]} 29. Qd2 {[%emt 0:00:03]} Rh8 {[%emt 0:00:07]} 30. Qd1 {[%emt 0:00:06]} g5 {[%emt 0:00:02]} 31. h5 {[%emt 0:00:06]} Rxh5 {[%emt 0:00:04]} 32. Rc2 {[%emt 0:00:02]} Qe6 {[%emt 0:00:08]} 33. Rcd2 {[%emt 0:00:02]} Rxe4 {[%emt 0:00:04]} 34. Re2 {[%emt 0:00:08]} Rxe2 {[%emt 0:00:05]} 35. Qxe2 {[%emt 0:00:01]} Qxe2+ {[%emt 0:00:03]} 36. Kxe2 {[%emt 0:00:01]} Rh2 {[%emt 0:00:01]} 37. Kf1 {[%emt 0:00:01]} f5 {[%emt 0:00:01]} 38. Rd2 {[%emt 0:00:05]} Kf6 {[%emt 0:00:02]} 39. Re2 {[%emt 0:00:02]} f4 {[%emt 0:00:04]} 40. gxf4 {[%emt 0:00:02]} gxf4 {[%emt 0:00:01]} 41. f3 {[%emt 0:00:00]} g3 {[%emt 0:00:10]} 42. Re8 {[%emt 0:00:02]} Rh7 {[%emt 0:00:05]} 43. Ke2 {[%emt 0:00:03]} d5 {[%emt 0:00:06]} 44. cxd5 {[%emt 0:00:02]} cxd5 {[%emt 0:00:01]} 45. Kd3 {[%emt 0:00:03]} Rh2 {[%emt 0:00:02]} 46. Re2 {[%emt 0:00:01]} Bf2 {[%emt 0:00:01]} 47. Bf1 {[%emt 0:00:04]} g2 {[%emt 0:00:02]} 48. Bxg2 {[%emt 0:00:01]} Rxg2 {[%emt 0:00:01]} 49. Rc2 {[%emt 0:00:02]} Rh2 {[%emt 0:00:04]} 50. Rc7 {[%emt 0:00:03]} b6 {[%emt 0:00:01]} 51. Rc6+ {[%emt 0:00:02]} Ke5 {[%emt 0:00:01]} 52. Rg6 {[%emt 0:00:01]} Be3 {[%emt 0:00:03]} 53. Rg5+ {[%emt 0:00:02]} Kd6 {[%emt 0:00:00]} 54. Rg6+ {[%emt 0:00:02]} Kc5 {[%emt 0:00:31]} 0-1

[Event "XTX Markets LCC Super Blitz-S2 2024"]
[Site "London"]
[Date "2024.12.07"]
[Round "4.3"]
[White "Smirin, Ilia"]
[Black "Stefansson, Vignir Vatnar"]
[Result "0-1"]
[Annotator "ChessBase"]
[ECO "C41"]
[WhiteElo "2574"]
[BlackElo "2537"]
[PlyCount "118"]
[EventDate "2024.11.28"]
[EventType "tourn"]
[EventCountry "ENG"]
[SourceTitle "playchess.com"]
[Source "ChessBase"]
[SourceQuality "1"]
[TimeControl "180+2"]

1. e4 {[%emt 0:00:01]} d6 {[%emt 0:00:00]} 2. d4 {[%emt 0:00:01]} Nf6 {[%emt 0:00:01]} 3. Nc3 {[%emt 0:00:01]} e5 {[%emt 0:00:01]} 4. Nf3 {[%emt 0:00:02]} Nbd7 {[%emt 0:00:01]} 5. Bc4 {[%emt 0:00:01]} Be7 {[%emt 0:00:01]} 6. O-O {[%emt 0:00:02]} c6 {[%emt 0:00:01]} 7. a4 {[%emt 0:00:02]} a5 {[%emt 0:00:01]} 8. Re1 {[%emt 0:00:03]} h6 {[%emt 0:00:01]} 9. b3 {[%emt 0:00:12]} O-O {[%emt 0:00:02]} 10. Bb2 {[%emt 0:00:10]} Re8 {[%emt 0:00:03]} 11. h3 {[%emt 0:00:04]} Bf8 {[%emt 0:00:01]} 12. Bf1 {[%emt 0:00:09]} exd4 {[%emt 0:00:03]} 13. Nxd4 {[%emt 0:00:08]} Nc5 {[%emt 0:00:04]} 14. Qf3 {[%emt 0:00:09]} Bd7 {[%emt 0:00:15]} 15. Rad1 {[%emt 0:00:02]} Qc7 {[%emt 0:00:01]} 16. Nf5 {[%emt 0:00:10]} Bxf5 {[%emt 0:00:23]} 17. Qxf5 {[%emt 0:00:03]} Re5 {[%emt 0:00:02]} 18. Qf4 {[%emt 0:00:12]} Rae8 {[%emt 0:00:02]} 19. f3 {[%emt 0:00:02]} Qb6 {[%emt 0:00:33]} 20. Kh2 {[%emt 0:00:17]} d5 {[%emt 0:00:04]} 21. Ne2 {[%emt 0:00:30]} Bd6 {[%emt 0:00:01]} 22. Kh1 {[%emt 0:00:02]} R5e6 {[%emt 0:00:03]} 23. Qh4 {[%emt 0:00:03]} dxe4 {[%emt 0:00:10]} 24. Nd4 {[%emt 0:00:01]} Re5 {[%emt 0:00:09]} 25. f4 {[%emt 0:00:08]} Rh5 {[%emt 0:00:19]} 26. Qg3 {[%emt 0:00:02]} Qc7 {[%emt 0:00:05]} 27. Nb5 {[%emt 0:00:11]} cxb5 {[%emt 0:00:09]} 28. Bxf6 {[%emt 0:00:02]} Ne6 {[%emt 0:00:19]} 29. Qg4 {[%emt 0:00:11]} Rc5 {[%emt 0:00:08]} 30. f5 {[%emt 0:00:26]} h5 {[%emt 0:00:01]} 31. Qxe4 {[%emt 0:00:06]} gxf6 {[%emt 0:00:12]} 32. Bxb5 {[%emt 0:00:08]} Re5 {[%emt 0:00:12]} 33. Qh4 {[%emt 0:00:12]} Rxe1+ {[%emt 0:00:06]} 34. Qxe1 {[%emt 0:00:06]} Ng7 {[%emt 0:00:11]} 35. Bxe8 {[%emt 0:00:02]} Nxf5 {[%emt 0:00:01]} 36. Rd3 {[%emt 0:00:06]} Qxc2 {[%emt 0:00:06]} 37. Bb5 {[%emt 0:00:01]} Qc7 {[%emt 0:00:07]} 38. Rf3 {[%emt 0:00:02]} Ng3+ {[%emt 0:00:03]} 39. Rxg3+ {[%emt 0:00:03]} Bxg3 {[%emt 0:00:01]} 40. Qe8+ {[%emt 0:00:02]} Kg7 {[%emt 0:00:01]} 41. Bc4 {[%emt 0:00:00]} h4 {[%emt 0:00:04]} 42. Qe4 {[%emt 0:00:03]} Bf4 {[%emt 0:00:04]} 43. Qf3 {[%emt 0:00:04]} b6 {[%emt 0:00:05]} 44. Qg4+ {[%emt 0:00:03]} Bg5 {[%emt 0:00:01]} 45. Qe4 {[%emt 0:00:01]} Qd6 {[%emt 0:00:02]} 46. Bd3 {[%emt 0:00:02]} Qc5 {[%emt 0:00:03]} 47. Bc4 {[%emt 0:00:02]} Qa3 {[%emt 0:00:03]} 48. Qe1 {[%emt 0:00:04]} Qb2 {[%emt 0:00:01]} 49. Qf1 {[%emt 0:00:01]} Qd2 {[%emt 0:00:03]} 50. Qe2 {[%emt 0:00:01]} Qd4 {[%emt 0:00:01]} 51. Qd3 {[%emt 0:00:02]} Qb2 {[%emt 0:00:06]} 52. Qe2 {[%emt 0:00:01]} Qc1+ {[%emt 0:00:04]} 53. Qf1 {[%emt 0:00:01]} Qe3 {[%emt 0:00:01]} 54. Qe2 {[%emt 0:00:01]} Qe5 {[%emt 0:00:02]} 55. Qf1 {[%emt 0:00:04]} Bf4 {[%emt 0:00:01]} 56. Qd1 {[%emt 0:00:02]} f5 {[%emt 0:00:01]} 57. Kg1 {[%emt 0:00:04]} Qe3+ {[%emt 0:00:02]} 58. Kf1 {[%emt 0:00:02]} Bg3 {[%emt 0:00:03]} 59. Qa1+ {[%emt 0:00:03]} f6 {[%emt 0:00:01]} 0-1

[Event "XTX Markets LCC Super Blitz-S2 2024"]
[Site "London"]
[Date "2024.12.07"]
[Round "4.4"]
[White "Vitiugov, Nikita"]
[Black "Adams, Michael"]
[Result "1/2-1/2"]
[Annotator "ChessBase"]
[ECO "D03"]
[WhiteElo "2668"]
[BlackElo "2662"]
[PlyCount "140"]
[EventDate "2024.11.28"]
[EventType "tourn"]
[EventCountry "ENG"]
[SourceTitle "playchess.com"]
[Source "ChessBase"]
[SourceQuality "1"]
[TimeControl "180+2"]

1. d4 {[%emt 0:00:02]} Nf6 {[%emt 0:00:01]} 2. Bg5 {[%emt 0:00:01]} d5 {[%emt 0:00:01]} 3. e3 {[%emt 0:00:01]} Nbd7 {[%emt 0:00:02]} 4. Nf3 {[%emt 0:00:06]} h6 {[%emt 0:00:02]} 5. Bh4 {[%emt 0:00:02]} e6 {[%emt 0:00:01]} 6. Nbd2 {[%emt 0:00:02]} Be7 {[%emt 0:00:02]} 7. Bd3 {[%emt 0:00:03]} b6 {[%emt 0:00:02]} 8. c3 {[%emt 0:00:04]} Bb7 {[%emt 0:00:01]} 9. Qe2 {[%emt 0:00:09]} Ne4 {[%emt 0:00:04]} 10. Bg3 {[%emt 0:00:21]} Nxd2 {[%emt 0:00:12]} 11. Nxd2 {[%emt 0:00:05]} O-O {[%emt 0:00:04]} 12. O-O {[%emt 0:00:18]} Nf6 {[%emt 0:00:02]} 13. Bh4 {[%emt 0:00:14]} Nd7 {[%emt 0:00:02]} 14. Bxe7 {[%emt 0:00:07]} Qxe7 {[%emt 0:00:01]} 15. f4 {[%emt 0:00:01]} Nf6 {[%emt 0:00:10]} 16. Nf3 {[%emt 0:00:02]} c5 {[%emt 0:00:03]} 17. Ne5 {[%emt 0:00:02]} Ne4 {[%emt 0:00:21]} 18. a4 {[%emt 0:00:07]} Rfd8 {[%emt 0:00:09]} 19. a5 {[%emt 0:00:06]} Rac8 {[%emt 0:00:10]} 20. axb6 {[%emt 0:01:49]} axb6 {[%emt 0:00:01]} 21. Bxe4 {[%emt 0:00:00]} dxe4 {[%emt 0:00:02]} 22. Ra7 {[%emt 0:00:00]} Rc7 {[%emt 0:00:02]} 23. Qb5 {[%emt 0:00:00]} cxd4 {[%emt 0:00:15]} 24. cxd4 {[%emt 0:00:00]} Bd5 {[%emt 0:00:03]} 25. Rxc7 {[%emt 0:00:00]} Qxc7 {[%emt 0:00:01]} 26. Qb4 {[%emt 0:00:00]} f6 {[%emt 0:00:07]} 27. Ng4 {[%emt 0:00:00]} Rc8 {[%emt 0:00:01]} 28. h3 {[%emt 0:00:00]} b5 {[%emt 0:00:17]} 29. f5 {[%emt 0:00:00]} h5 {[%emt 0:00:03]} 30. Nh2 {[%emt 0:00:01]} Qg3 {[%emt 0:00:16]} 31. Qd2 {[%emt 0:00:03]} Bc4 {[%emt 0:00:05]} 32. Qf2 {[%emt 0:00:08]} Qxf2+ {[%emt 0:00:21]} 33. Rxf2 {[%emt 0:00:01]} exf5 {[%emt 0:00:01]} 34. Rxf5 {[%emt 0:00:02]} Bd3 {[%emt 0:00:01]} 35. Rxh5 {[%emt 0:00:08]} Rc1+ {[%emt 0:00:02]} 36. Kf2 {[%emt 0:00:00]} Rc2+ {[%emt 0:00:01]} 37. Kg3 {[%emt 0:00:01]} Rxb2 {[%emt 0:00:01]} 38. Ng4 {[%emt 0:00:02]} Bf1 {[%emt 0:00:16]} 39. Nf2 {[%emt 0:00:01]} Re2 {[%emt 0:00:01]} 40. Rxb5 {[%emt 0:00:07]} Rxe3+ {[%emt 0:00:07]} 41. Kf4 {[%emt 0:00:01]} Re2 {[%emt 0:00:00]} 42. Rb8+ {[%emt 0:00:01]} Kh7 {[%emt 0:00:01]} 43. Nxe4 {[%emt 0:00:02]} Bxg2 {[%emt 0:00:01]} 44. Nc5 {[%emt 0:00:03]} Bxh3 {[%emt 0:00:06]} 45. d5 {[%emt 0:00:01]} Re5 {[%emt 0:00:01]} 46. Rd8 {[%emt 0:00:04]} g5+ {[%emt 0:00:02]} 47. Kg3 {[%emt 0:00:01]} Bf5 {[%emt 0:00:01]} 48. Na6 {[%emt 0:00:02]} Re3+ {[%emt 0:00:04]} 49. Kf2 {[%emt 0:00:01]} Rd3 {[%emt 0:00:00]} 50. Nc5 {[%emt 0:00:01]} Rc3 {[%emt 0:00:03]} 51. Na6 {[%emt 0:00:04]} Kg6 {[%emt 0:00:05]} 52. d6 {[%emt 0:00:01]} Rd3 {[%emt 0:00:02]} 53. Nc5 {[%emt 0:00:01]} Rd5 {[%emt 0:00:01]} 54. Na4 {[%emt 0:00:04]} Be6 {[%emt 0:00:02]} 55. Nc3 {[%emt 0:00:02]} Rd3 {[%emt 0:00:02]} 56. Ne4 {[%emt 0:00:01]} Bf5 {[%emt 0:00:02]} 57. Ng3 {[%emt 0:00:03]} Bg4 {[%emt 0:00:01]} 58. Ne4 {[%emt 0:00:01]} Kf5 {[%emt 0:00:02]} 59. Nc5 {[%emt 0:00:01]} Rd5 {[%emt 0:00:02]} 60. d7 {[%emt 0:00:03]} Kf4 {[%emt 0:00:21]} 61. Rf8 {[%emt 0:00:01]} Bxd7 {[%emt 0:00:01]} 62. Nxd7 {[%emt 0:00:02]} Rxd7 {[%emt 0:00:01]} 63. Rxf6+ {[%emt 0:00:01]} Kg4 {[%emt 0:00:01]} 64. Kg1 {[%emt 0:00:03]} Kg3 {[%emt 0:00:02]} 65. Rf1 {[%emt 0:00:01]} Rd3 {[%emt 0:00:03]} 66. Ra1 {[%emt 0:00:01]} g4 {[%emt 0:00:01]} 67. Rb1 {[%emt 0:00:01]} Kh3 {[%emt 0:00:01]} 68. Ra1 {[%emt 0:00:02]} g3 {[%emt 0:00:01]} 69. Rb1 {[%emt 0:00:01]} Rd2 {[%emt 0:00:03]} 70. Ra1 {[%emt 0:00:02]} Rc2 {[%emt 0:00:35]} 1/2-1/2

[Event "XTX Markets LCC Super Blitz-S2 2024"]
[Site "London"]
[Date "2024.12.07"]
[Round "5.1"]
[White "Adams, Michael"]
[Black "Vachier-Lagrave, Maxime"]
[Result "0-1"]
[Annotator "RC"]
[ECO "B53"]
[WhiteElo "2662"]
[BlackElo "2731"]
[PlyCount "146"]
[EventDate "2024.11.28"]
[EventType "tourn"]
[EventCountry "ENG"]
[SourceTitle "playchess.com"]
[Source "ChessBase"]
[SourceQuality "1"]
[TimeControl "180+2"]

1. e4 {[%emt 0:00:01]} c5 {[%emt 0:00:01]} 2. Nf3 {[%emt 0:00:02]} d6 {[%emt 0:00:01]} 3. Nc3 {[%emt 0:00:00]} Nf6 {[%emt 0:00:02]} 4. d4 {[%emt 0:00:01]} cxd4 {[%emt 0:00:01]} 5. Qxd4 {[%emt 0:00:02]} Nc6 {[%emt 0:00:02]} 6. Qe3 {[%emt 0:00:01]} g6 {[%emt 0:00:02]} 7. Bc4 {[%emt 0:00:01]} Bg7 {[%emt 0:00:02]} 8. h3 {[%emt 0:00:01]} O-O {[%emt 0:00:03]} 9. O-O {[%emt 0:00:02]} Bd7 {[%emt 0:00:11]} 10. Rd1 {[%emt 0:00:03]} Rc8 {[%emt 0:00:04]} 11. Bf1 {[%emt 0:00:06]} Qc7 {[%emt 0:00:21]} 12. a3 {[%emt 0:00:03]} Rfd8 {[%emt 0:00:11]} 13. Qe1 {[%emt 0:00:10]} Qb8 {[%emt 0:00:12]} 14. Bf4 {[%emt 0:00:08]} a6 {[%emt 0:00:36]} 15. Rac1 {[%emt 0:00:13]} b5 {[%emt 0:00:05]} 16. Nd5 {[%emt 0:00:03]} Be6 {[%emt 0:00:02]} 17. c3 {[%emt 0:00:05]} Qb7 {[%emt 0:00:11]} 18. Qe3 {[%emt 0:00:19]} Bxd5 {[%emt 0:00:06]} 19. exd5 {[%emt 0:00:02]} Na5 {[%emt 0:00:01]} 20. Bh6 {[%emt 0:00:39]} Nxd5 {[%emt 0:00:08]} 21. Qg5 {[%emt 0:00:03]} Nf6 {[%emt 0:00:10]} 22. Bxg7 {[%emt 0:00:02]} Kxg7 {[%emt 0:00:01]} 23. Nd4 {[%emt 0:00:01]} Kh8 {[%emt 0:00:13]} 24. Re1 {[%emt 0:00:05]} Nc6 {[%emt 0:00:05]} 25. Nf3 {[%emt 0:00:06]} Kg7 {[%emt 0:00:04]} 26. Rcd1 {[%emt 0:00:03]} e6 {[%emt 0:00:13]} 27. Rd3 {[%emt 0:00:07]} Ne7 {[%emt 0:00:06]} 28. Nd4 {[%emt 0:00:04]} h6 {[%emt 0:00:02]} 29. Qd2 {[%emt 0:00:10]} e5 {[%emt 0:00:06]} 30. Nc2 {[%emt 0:00:02]} Qc7 {[%emt 0:00:07]} 31. Nb4 {[%emt 0:00:11]} a5 {[%emt 0:00:02]} 32. Nc2 {[%emt 0:00:00]} Rb8 {[%emt 0:00:05]} 33. Rde3 {[%emt 0:00:07]} Nf5 {[%emt 0:00:03]} 34. Rf3 {[%emt 0:00:03]} d5 {[%emt 0:00:08]} 35. Ne3 {[%emt 0:00:06]} Nh4 {[%emt 0:00:06]} 36. Rxf6 {[%emt 0:00:06]} Kxf6 {[%emt 0:00:06]} 37. Ng4+ {[%emt 0:00:00]} Ke6 {[%emt 0:00:01]} 38. Rxe5+ {[%emt 0:00:04]} Kd7 {[%emt 0:00:02]} 39. Rxd5+ {[%emt 0:00:36]} Kc8 {[%emt 0:00:01]} 40. Rxd8+ Qxd8 {[%emt 0:00:01]} 41. Qe3 {[%emt 0:00:03]} Nf5 {[%emt 0:00:02]} 42. Qc5+ {[%emt 0:00:02]} Qc7 {[%emt 0:00:01]} 43. Qd5 {[%emt 0:00:03]} Qd7 {[%emt 0:00:09]} 44. Qc5+ {[%emt 0:00:01]} Qc7 {[%emt 0:00:01]} 45. Qd5 {[%emt 0:00:01]} Qd7 {[%emt 0:00:01]} 46. Qe4 {[%emt 0:00:05]} Qe6 {[%emt 0:00:05]} 47. Qf4 {[%emt 0:00:08]} h5 {[%emt 0:00:03]} 48. Ne5 {[%emt 0:00:01]} Rb6 {[%emt 0:00:02]} 49. Nd3 {[%emt 0:00:01]} Qd6 {[%emt 0:00:03]} 50. Qe4 {[%emt 0:00:02]} Qc6 {[%emt 0:00:04]} 51. Qe5 {[%emt 0:00:01]} Qc7 {[%emt 0:00:01]} 52. Qe8+ {[%emt 0:00:02]} Kb7 {[%emt 0:00:02]} 53. g3 {[%emt 0:00:02]} Ka7 {[%emt 0:00:06]} 54. Bg2 {[%emt 0:00:02]} Rb8 {[%emt 0:00:01]} 55. Qe4 {[%emt 0:00:01]} Nd6 {[%emt 0:00:01]} 56. Qe5 {[%emt 0:00:02]} Re8 {[%emt 0:00:02]} 57. Qd5 {[%emt 0:00:02]} h4 {[%emt 0:00:04]} 58. gxh4 {[%emt 0:00:05]} Qb6 {[%emt 0:00:03]} 59. b4 {[%emt 0:00:02]} axb4 {[%emt 0:00:01]} 60. axb4 {[%emt 0:00:00]} Qc7 {[%emt 0:00:01]} 61. Kf1 {[%emt 0:00:05]} Rd8 {[%emt 0:00:02]} 62. Qd4+ {[%emt 0:00:02]} Qb6 {[%emt 0:00:01]} 63. Nc5 {[%emt 0:00:02]} Nc4 {[%emt 0:00:01]} 64. Qf4 {[%emt 0:00:02]} f5 {[%emt 0:00:03]} 65. Kg1 {[%emt 0:00:04]} Rd1+ {[%emt 0:00:02]} 66. Bf1 {[%emt 0:00:07]} Nd2 {[%emt 0:00:01]} 67. Kg2 {[%emt 0:00:03]} Qc6+ {[%emt 0:00:01]} 68. f3 {[%emt 0:00:02]} Nxf1 {[%emt 0:00:01]} 69. Qe5 {[%emt 0:00:02]} Rd2+ {[%emt 0:00:02]} 70. Kg1 {[%emt 0:00:01]} Nh2 {[%emt 0:00:03]} 71. Qe7+ {[%emt 0:00:03]} Kb6 {[%emt 0:00:01]} 72. Na4+ {[%emt 0:00:06]} bxa4 {[%emt 0:00:11]} 73. Qe3+ {[%emt 0:00:00]} Kb7 {[%emt 0:00:00]} 0-1